bitfinex-derivatives/quotes_BTCF0:USTF0_20250213
["timestamp","ask_amount","ask_price","bid_price","bid_amount"]
[1739464419154,0.002,95576.0,95575.0,0.2092288]
[1739464419949,0.001,95576.0,95575.0,0.2092288]
[1739464420156,0.003,95576.0,95575.0,0.2092288]
[1739464420855,0.004,95576.0,95575.0,0.2092288]
[1739464421351,0.004,95576.0,95573.0,0.01573247]
[1739464422252,0.004,95576.0,95575.0,0.2092288]
[1739464422452,0.07687428,95575.0,95573.0,0.01573247]
[1739464423556,0.07687428,95575.0,95574.0,0.209231]
[1739464423850,0.07687428,95575.0,95573.0,0.01573247]
[1739464424554,0.07887428,95575.0,95573.0,0.01573247]
[1739464424956,0.07987428,95575.0,95573.0,0.01573247]
[1739464425549,0.07887428,95575.0,95573.0,0.01573247]
[1739464425860,0.3608,95574.0,95573.0,0.00015697]
[1739464426053,0.3608,95574.0,95572.0,0.00156946]
[1739464426054,0.2092332,95573.0,95572.0,0.00156946]
[1739464426458,0.20919007,95573.0,95572.0,0.00156946]
[1739464426663,0.2092496,95566.0,95554.0,0.2092748]
[1739464426850,0.6499512,95565.0,95554.0,0.2092748]
[1739464427053,0.6499512,95565.0,95554.0,0.22485021]
[1739464427362,0.6499512,95565.0,95554.0,0.01557541]
[1739464427363,0.2092576,95562.0,95554.0,0.01557541]
[1739464427555,0.2092576,95562.0,95551.0,0.3608]
[1739464427556,0.2092576,95562.0,95551.0,0.570081]
[1739464427751,0.44162,95565.0,95551.0,0.3608]
[1739464427948,0.4407,95565.0,95554.0,0.2192742]
[1739464428353,0.4407,95565.0,95554.0,0.2152742]
[1739464428551,0.4407,95565.0,95554.0,0.2192742]
[1739464428747,0.4407,95565.0,95554.0,0.01968763]
[1739464428947,0.4407,95565.0,95564.0,0.2092529]
[1739464429151,0.4407,95565.0,95558.0,0.2092651]
[1739464429355,0.4407,95565.0,95554.0,0.01968763]
[1739464429553,0.4407,95565.0,95563.0,0.2092549]
[1739464429758,0.33450724,95565.0,95564.0,0.2092529]
[1739464429956,0.00015697,95569.0,95558.0,0.3608]
[1739464430159,0.00015697,95569.0,95568.0,0.2092441]
[1739464431461,0.00015697,95569.0,95558.0,0.008]
[1739464431462,0.2092639,95559.0,95558.0,0.005]
[1739464431765,0.2092814,95551.0,95550.0,0.00015697]
[1739464431975,0.3608,95551.0,95550.0,0.00015697]
[1739464432654,0.3608,95551.0,95550.0,0.01536374]
[1739464432948,0.4444,95551.0,95550.0,0.01536374]
[1739464433864,0.4454,95551.0,95550.0,0.02136374]
[1739464434455,0.4464,95551.0,95550.0,0.02836374]
[1739464435662,0.3628,95551.0,95550.0,0.02836374]
[1739464438161,0.002,95551.0,95550.0,0.02836374]
[1739464440273,0.00015697,95569.0,95568.0,0.2092442]
[1739464441056,0.1564,95589.0,95568.0,0.3608]
[1739464441373,0.0797,95589.0,95583.0,0.3608]
[1739464441557,0.3608,95592.0,95583.0,0.3608]
[1739464442071,0.07936,95599.0,95592.0,0.2091916]
[1739464442362,0.00015697,95597.0,95595.0,0.2091843]
[1739464443570,0.00315697,95597.0,95595.0,0.2091843]
[1739464444260,0.00715697,95597.0,95595.0,0.2091843]
[1739464444672,0.00215697,95597.0,95596.0,0.3608]
[1739464446460,0.004,95597.0,95596.0,0.3608]
[1739464446662,0.004,95597.0,95592.0,0.0773]
[1739464446866,0.004,95597.0,95595.0,0.2091844]
[1739464447066,0.007,95597.0,95595.0,0.2091844]
[1739464447565,0.077,95600.0,95596.0,0.2091825]
[1739464447764,0.004,95597.0,95596.0,0.2091825]
[1739464448168,0.007,95597.0,95596.0,0.2091825]
[1739464448670,0.004,95597.0,95596.0,0.2091825]
[1739464449766,0.08,95600.0,95599.0,0.2091763]
[1739464450175,0.077,95600.0,95599.0,0.2091763]
[1739464450974,0.08,95600.0,95599.0,0.2091763]
[1739464452663,0.08,95600.0,95596.0,0.2091822]
[1739464452864,0.08,95600.0,95599.0,0.2091763]
[1739464453065,0.084,95600.0,95599.0,0.2091763]
[1739464454661,0.08,95600.0,95599.0,0.2091763]
[1739464454865,0.084,95600.0,95599.0,0.2091763]
[1739464455878,0.03303001,95600.0,95599.0,0.2091763]
[1739464456769,0.02903001,95600.0,95599.0,0.2091763]
[1739464456976,0.03203001,95600.0,95599.0,0.2091763]
[1739464457469,0.02703001,95600.0,95599.0,0.2091763]
[1739464457673,0.02803001,95600.0,95599.0,0.2091763]
[1739464458174,0.00195651,95600.0,95599.0,0.2091763]
[1739464458478,1e-08,95600.0,95599.0,0.5091763]
[1739464459883,0.0779,95629.0,95617.0,0.2091369]
[1739464460179,0.0779,95629.0,95617.0,0.5699369]
[1739464460577,0.0779,95629.0,95617.0,0.6499369]
[1739464460978,0.00356947,95618.0,95617.0,0.6499369]
[1739464461381,0.00356947,95618.0,95617.0,0.66463994]
[1739464461582,0.00156947,95618.0,95617.0,0.66463994]
[1739464461779,0.002,95618.0,95617.0,0.66463994]
[1739464462084,0.004,95618.0,95617.0,0.66463994]
[1739464462676,0.004,95618.0,95617.0,0.58463994]
[1739464463485,0.00156866,95647.0,95617.0,0.45434304]
[1739464463676,0.0791,95645.0,95636.0,0.12614406]
[1739464463870,0.0791,95645.0,95635.0,0.3608]
[1739464464080,0.0791,95645.0,95637.0,0.2090929]
[1739464464276,0.0791,95645.0,95635.0,0.3608]
[1739464464896,0.0801,95645.0,95644.0,0.2090779]
[1739464465680,0.0801,95645.0,95636.0,0.001]
[1739464465882,0.0801,95645.0,95636.0,0.01563257]
[1739464466183,0.0801,95645.0,95636.0,0.001]
[1739464466382,0.0801,95645.0,95639.0,0.2090887]
[1739464466785,0.0811,95645.0,95640.0,0.2090855]
[1739464466987,0.0801,95645.0,95640.0,0.2090855]
[1739464467587,0.0801,95645.0,95639.0,0.001]
[1739464467791,0.2891759,95645.0,95639.0,0.001]
[1739464468093,0.2891759,95645.0,95639.0,0.2100887]
[1739464468482,0.2891759,95645.0,95640.0,0.2090866]
[1739464468977,0.2891759,95645.0,95641.0,0.2090842]
[1739464469180,0.0801,95645.0,95639.0,0.001]
[1739464469383,0.0801,95645.0,95643.0,0.2090798]
[1739464469586,0.0801,95645.0,95640.0,0.2090858]
[1739464469791,0.2090801,95643.0,95640.0,0.2100858]
[1739464469994,0.0801,95645.0,95640.0,0.001]
[1739464470180,0.0801,95645.0,95641.0,0.2090843]
[1739464470589,0.0801,95645.0,95643.0,0.001]
[1739464471592,0.0801,95645.0,95644.0,0.2090779]
[1739464473286,0.0776,95646.0,95645.0,0.2090757]
[1739464473488,0.087,95658.0,95646.0,0.0522678]
[1739464473689,0.0836,95657.0,95656.0,0.20905]
[1739464474793,0.0836,95657.0,95656.0,0.21005]
[1739464475495,0.0836,95657.0,95656.0,0.2242951]
[1739464476294,0.0846,95657.0,95656.0,0.2252951]
[1739464476980,0.001,95657.0,95656.0,0.2252951]
[1739464479689,0.001,95657.0,95656.0,0.0162451]
[1739464480587,0.2100495,95657.0,95656.0,0.0162451]
[1739464480788,0.2100495,95657.0,95656.0,0.002]
[1739464480994,0.001,95657.0,95641.0,0.3608]
[1739464481185,0.2090697,95648.0,95641.0,0.5698843]
[1739464481380,0.0801,95647.0,95641.0,0.5698843]
[1739464482195,0.0801,95647.0,95641.0,0.3608]
[1739464482600,0.2090822,95642.0,95641.0,0.01571007]
[1739464482898,0.2091063,95631.0,95630.0,0.00015689]
[1739464485094,0.0847,95632.0,95630.0,0.20926529]
[1739464485502,0.0847,95632.0,95630.0,0.00115689]
[1739464485990,0.0872,95631.0,95630.0,0.00115689]
[1739464486298,0.0872,95631.0,95630.0,0.00015689]
[1739464487496,0.0872,95631.0,95612.0,0.209147]
[1739464487705,0.2091369,95617.0,95600.0,0.12614406]
[1739464487904,0.2091369,95617.0,95608.0,0.2091559]
[1739464488101,0.2091369,95617.0,95600.0,0.12614406]
[1739464488291,0.0829,95621.0,95612.0,0.2091474]
[1739464488697,0.0829,95621.0,95616.0,0.00556865]
[1739464488897,0.2091364,95618.0,95616.0,0.01983959]
[1739464489107,0.2091364,95618.0,95616.0,0.00156865]
[1739464490199,0.2091522,95610.0,95609.0,0.00015689]
[1739464490403,0.3608,95610.0,95594.0,0.209187]
[1739464490702,0.2091688,95603.0,95595.0,0.2091844]
[1739464491801,0.2091688,95603.0,95595.0,0.22352006]
[1739464492013,0.17185689,95609.0,95599.0,0.2091743]
[1739464492194,0.38101209,95609.0,95599.0,0.2091743]
[1739464492400,0.2091575,95608.0,95599.0,0.2091743]
[1739464493099,0.08735689,95609.0,95598.0,0.12614406]
[1739464493306,0.2091602,95607.0,95599.0,0.01]
[1739464493699,0.08735689,95609.0,95599.0,0.01]
[1739464494093,0.3608,95600.0,95599.0,0.01]
[1739464494498,0.4409,95600.0,95599.0,0.01]
[1739464496801,0.3608,95600.0,95599.0,0.01]
[1739464497406,0.3608,95601.0,95599.0,0.01]
[1739464498008,0.3608,95601.0,95599.0,0.2191747]
[1739464498402,0.2091705,95602.0,95599.0,0.2151747]
[1739464498601,0.2091705,95602.0,95599.0,0.2191747]
[1739464499515,0.2091705,95602.0,95599.0,0.2091747]
[1739464499808,0.2091705,95602.0,95599.0,0.2191747]
[1739464500512,0.00015689,95609.0,95608.0,0.2091566]
[1739464501703,0.00015689,95609.0,95608.0,0.004]
[1739464502104,0.08675689,95609.0,95608.0,0.004]
[1739464502510,0.44755689,95609.0,95608.0,0.008]
[1739464502805,0.44755689,95609.0,95608.0,0.006]
[1739464503008,0.44755689,95609.0,95608.0,0.008]
[1739464504208,0.44755689,95609.0,95593.0,0.22343816]
[1739464504209,0.44755689,95609.0,95589.0,0.00015689]
[1739464504409,0.209196,95590.0,95589.0,0.00015689]
[1739464505414,0.209196,95590.0,95589.0,0.00715689]
[1739464505604,0.209196,95590.0,95589.0,0.01415689]
[1739464506613,0.3608,95591.0,95590.0,0.209196]
[1739464506799,0.2091819,95597.0,95593.0,0.2091884]
[1739464507022,0.0849,95599.0,95598.0,0.2091785]
[1739464507204,0.3608,95601.0,95598.0,0.2091785]
[1739464507406,0.3608,95601.0,95590.0,0.2091953]
[1739464507610,0.2091797,95598.0,95590.0,0.2091953]
[1739464507799,0.2091797,95598.0,95591.0,0.2091927]
[1739464508005,0.2091797,95598.0,95590.0,0.007]
[1739464508309,0.3608,95601.0,95592.0,0.3608]
[1739464508507,0.3608,95601.0,95599.0,0.2091744]
[1739464508715,0.3618,95601.0,95600.0,0.0847]
[1739464510507,0.3618,95601.0,95600.0,0.1638]
[1739464510816,0.3618,95601.0,95600.0,0.17726676]
[1739464511215,0.3618,95601.0,95600.0,0.18126676]
[1739464511413,0.3608,95601.0,95600.0,0.18126676]
[1739464511611,0.3608,95601.0,95600.0,0.18626676]
[1739464511807,0.00015689,95609.0,95600.0,0.18626676]
[1739464512017,0.00015689,95609.0,95601.0,0.2091719]
[1739464512609,0.00015689,95609.0,95600.0,0.18626676]
[1739464512813,0.00015689,95609.0,95607.0,0.2091577]
[1739464513016,0.27680681,95609.0,95607.0,0.2091577]
[1739464514622,0.14172438,95609.0,95607.0,0.2091577]
[1739464514921,0.14172438,95609.0,95601.0,0.7256]
[1739464515113,0.14172438,95609.0,95601.0,0.3648]
[1739464515418,0.14172438,95609.0,95607.0,0.002]
[1739464515625,0.35087968,95609.0,95607.0,0.002]
[1739464515918,0.14172438,95609.0,95607.0,0.004]
[1739464516124,0.14172438,95609.0,95607.0,0.002]
[1739464516423,0.14172438,95609.0,95608.0,0.2091566]
[1739464516608,0.00156934,95610.0,95608.0,0.2091566]
[1739464517824,0.00156934,95610.0,95608.0,0.2101566]
[1739464518022,0.3608,95614.0,95609.0,0.2091526]
[1739464518420,0.00015661,95615.0,95610.0,0.2091513]
[1739464518724,0.00015661,95615.0,95613.0,0.2091451]
[1739464521127,0.00015661,95615.0,95614.0,0.0809]
[1739464521622,0.00015661,95615.0,95605.0,0.12614406]
[1739464521623,0.00015661,95615.0,95613.0,0.209144]
[1739464522126,0.2091223,95624.0,95611.0,0.3608]
[1739464522419,0.12614406,95621.0,95611.0,0.3608]
[1739464522625,0.2091411,95616.0,95611.0,0.3608]
[1739464522823,0.2543,95615.0,95611.0,0.5699495]
[1739464523019,0.2543,95615.0,95613.0,0.209145]
[1739464525021,0.2543,95615.0,95611.0,0.36236]
[1739464525319,0.2543,95615.0,95603.0,0.00015689]
[1739464525320,0.2091653,95604.0,95603.0,0.00015689]
[1739464526423,0.2091916,95592.0,95591.0,0.00156907]
[1739464528124,0.2091916,95592.0,95591.0,0.01556907]
[1739464528325,0.2092113,95583.0,95582.0,0.00015689]
[1739464529541,0.2102113,95583.0,95582.0,0.01415689]
[1739464531335,0.2092327,95574.0,95571.0,0.2092371]
[1739464531628,0.0867,95582.0,95569.0,0.3608]
[1739464531824,0.2091992,95589.0,95586.0,0.2092041]
[1739464532024,0.2092025,95588.0,95586.0,0.2092041]
[1739464532223,0.2092047,95586.0,95585.0,0.01352292]
[1739464532422,0.2271918,95592.0,95577.0,0.36095689]
[1739464532627,0.12614406,95590.0,95588.0,0.2091992]
[1739464532829,0.018,95592.0,95588.0,0.2091992]
[1739464533226,0.018,95592.0,95577.0,0.36095689]
[1739464533430,0.209208,95585.0,95582.0,0.2092135]
[1739464533928,0.3608,95583.0,95577.0,0.01382466]
[1739464534117,0.2092121,95583.0,95577.0,0.01382466]
[1739464534924,0.2091988,95589.0,95577.0,0.01382466]
[1739464535126,0.001,95590.0,95583.0,0.2092098]
[1739464535321,0.2092038,95587.0,95583.0,0.2092098]
[1739464535526,0.002,95585.0,95583.0,0.2092098]
[1739464536034,0.2092054,95586.0,95583.0,0.2092098]
[1739464536331,0.29694406,95593.0,95577.0,0.00115689]
[1739464536534,0.2092218,95579.0,95577.0,0.00115689]
[1739464536725,0.2092218,95579.0,95577.0,0.00015689]
[1739464537125,0.2092112,95584.0,95578.0,0.2092214]
[1739464537328,0.003,95586.0,95577.0,0.00015689]
[1739464537630,0.003,95586.0,95585.0,0.2092069]
[1739464538433,0.004,95586.0,95585.0,0.2092069]
[1739464539032,0.001,95586.0,95585.0,0.2092069]
[1739464539221,0.20933809,95597.0,95586.0,0.209203]
[1739464540129,0.20933809,95597.0,95593.0,0.3608]
[1739464540836,0.2091832,95596.0,95586.0,0.209203]
[1739464541133,0.00015689,95597.0,95593.0,0.3608]
[1739464541433,0.00015689,95597.0,95595.0,0.2091846]
[1739464541926,0.00015689,95597.0,95593.0,0.3608]
[1739464542630,0.00115689,95597.0,95593.0,0.3608]
[1739464542936,0.00115689,95597.0,95595.0,0.2091836]
[1739464543738,0.00115689,95597.0,95596.0,0.0815]
[1739464544036,0.00115689,95597.0,95596.0,0.09496371]
[1739464545035,0.00115689,95597.0,95596.0,0.01346371]
[1739464545235,0.00115689,95597.0,95595.0,0.209183]
[1739464545628,0.00115689,95597.0,95593.0,0.3618]
[1739464546026,0.0813,95596.0,95593.0,0.001]
[1739464546233,0.2091871,95595.0,95593.0,0.001]
[1739464546734,0.0844,95594.0,95585.0,0.3608]
[1739464546936,0.2091955,95591.0,95588.0,0.2092001]
[1739464547239,0.0844,95594.0,95591.0,0.2091929]
[1739464547534,0.0844,95594.0,95593.0,0.001]
[1739464548040,0.0813,95596.0,95594.0,0.2091872]
[1739464548333,0.36095689,95597.0,95596.0,0.2091828]
[1739464548535,0.00015689,95597.0,95596.0,0.5699828]
[1739464550140,0.00115689,95597.0,95596.0,0.5699828]
[1739464550938,0.00115689,95597.0,95596.0,0.5709828]
[1739464551136,0.01380108,95623.0,95597.0,0.0522948]
[1739464551342,0.01380108,95623.0,95621.0,0.2091282]
[1739464551638,0.00156907,95632.0,95618.0,0.3608]
[1739464552049,0.00156907,95632.0,95618.0,0.37446234]
[1739464552230,0.00172596,95632.0,95618.0,0.37446234]
[1739464552542,0.00172596,95632.0,95625.0,0.2091177]
[1739464553343,0.003,95626.0,95618.0,0.37502234]
[1739464553539,0.003,95626.0,95618.0,0.3608]
[1739464553849,0.209125,95623.0,95618.0,0.3608]
[1739464554041,0.006,95626.0,95618.0,0.37426782]
[1739464554340,0.003,95626.0,95624.0,0.2091206]
[1739464554549,0.00415689,95632.0,95618.0,0.36144]
[1739464554738,0.20911,95630.0,95618.0,0.3608]
[1739464554937,0.33525406,95630.0,95618.0,0.3608]
[1739464555139,0.003,95623.0,95618.0,0.3608]
[1739464555447,0.003,95623.0,95622.0,0.209126]
[1739464556443,0.006,95623.0,95622.0,0.209126]
[1739464556843,0.003,95623.0,95622.0,0.209126]
[1739464557449,0.007,95623.0,95622.0,0.209126]
[1739464557745,0.004,95623.0,95622.0,0.209126]
[1739464557941,0.009,95623.0,95622.0,0.209126]
[1739464560741,0.009,95623.0,95618.0,0.3608]
[1739464560948,0.2181246,95623.0,95618.0,0.2091329]
[1739464561137,0.2181246,95623.0,95612.0,0.00015689]
[1739464561138,0.009,95623.0,95612.0,0.00015689]
[1739464561337,0.209131,95620.0,95612.0,0.00015689]
[1739464561536,0.209131,95620.0,95615.0,0.2091406]
[1739464562150,0.2091352,95618.0,95615.0,0.2091406]
[1739464562448,0.0841,95617.0,95615.0,0.2091406]
[1739464563343,0.004,95623.0,95613.0,0.01368284]
[1739464563548,0.004,95623.0,95622.0,0.209126]
[1739464563952,0.003,95623.0,95622.0,0.209126]
[1739464564143,0.001,95623.0,95622.0,0.01327216]
[1739464564350,0.001,95623.0,95622.0,0.209126]
[1739464564547,0.001,95623.0,95622.0,0.291826]
[1739464564852,0.009,95623.0,95622.0,0.46736804]
[1739464565554,1e-08,95623.0,95622.0,0.46736804]
[1739464566951,0.0808,95649.0,95630.0,0.2091085]
[1739464567251,0.0808,95649.0,95631.0,0.3608]
[1739464568453,0.00215689,95632.0,95631.0,0.3608]
[1739464569349,0.0128433,95666.0,95631.0,0.6608]
[1739464569657,0.36164,95670.0,95659.0,0.3608]
[1739464569851,0.3608,95670.0,95659.0,0.3608]
[1739464570161,0.3608,95670.0,95665.0,0.2090316]
[1739464570345,0.3608,95670.0,95666.0,0.2090283]
[1739464570551,0.3608,95670.0,95659.0,0.3608]
[1739464570552,0.007,95666.0,95665.0,0.209032]
[1739464571157,0.014,95670.0,95669.0,0.2090232]
[1739464571652,0.007,95670.0,95669.0,0.2090232]
[1739464571855,0.003,95666.0,95663.0,0.3608]
[1739464572052,0.003,95666.0,95664.0,0.2090342]
[1739464572855,0.003,95666.0,95663.0,0.3608]
[1739464572856,0.1,95700.0,95665.0,0.0522576]
[1739464573053,0.1,95700.0,95693.0,0.3608]
[1739464573054,0.1684,95699.0,95693.0,0.3608]
[1739464573760,0.1684,95699.0,95697.0,0.2089609]
[1739464574056,0.1754,95699.0,95697.0,0.2089609]
[1739464574254,0.007,95699.0,95697.0,0.22170289]
[1739464574455,0.014,95699.0,95697.0,0.22170289]
[1739464574753,0.007,95699.0,95697.0,0.22170289]
[1739464574958,0.007,95699.0,95697.0,0.22270289]
[1739464575160,0.014,95699.0,95697.0,0.22370289]
[1739464575550,0.007,95699.0,95697.0,0.22270289]
[1739464575861,0.012,95699.0,95697.0,0.01474199]
[1739464576365,0.012,95699.0,95697.0,0.22370319]
[1739464577251,0.012,95699.0,95698.0,0.3608]
[1739464578751,0.007,95699.0,95698.0,0.3608]
[1739464579064,0.009,95699.0,95698.0,0.3608]
[1739464579471,0.009,95699.0,95698.0,0.3618]
[1739464580256,0.005,95699.0,95698.0,0.3608]
[1739464580455,0.168,95699.0,95698.0,0.3608]
[1739464581061,0.168,95699.0,95693.0,0.3608]
[1739464581062,0.168,95699.0,95689.0,0.2089788]
[1739464581267,0.168,95699.0,95693.0,0.3608]
[1739464581564,0.168,95699.0,95697.0,0.20896]
[1739464582361,0.166,95699.0,95697.0,0.20896]
[1739464582560,0.005,95699.0,95697.0,0.20896]
[1739464583266,0.005,95699.0,95693.0,0.72216]
[1739464583454,0.005,95699.0,95693.0,0.3608]
[1739464583654,0.2089724,95693.0,95690.0,0.01315336]
[1739464583860,0.208984,95687.0,95677.0,0.3608]
[1739464584061,0.208984,95687.0,95679.0,0.2090009]
[1739464584361,0.1621,95692.0,95677.0,0.3608]
[1739464584560,0.1747425,95692.0,95686.0,0.01322042]
[1739464584759,0.1621,95692.0,95686.0,0.0001568]
[1739464584968,0.3608,95688.0,95686.0,0.0001568]
[1739464585167,0.078,95687.0,95686.0,0.0001568]
[1739464586071,0.2090106,95675.0,95650.0,0.48694406]
[1739464586262,0.2090106,95675.0,95664.0,0.2090331]
[1739464586462,0.2090106,95675.0,95670.0,0.2090209]
[1739464587269,0.2090106,95675.0,95671.0,0.2090182]
[1739464587669,0.3608,95680.0,95675.0,0.2090089]
[1739464588168,0.3608,95680.0,95676.0,0.2090073]
[1739464588964,0.3608,95680.0,95675.0,0.002]
[1739464589169,0.3608,95680.0,95678.0,0.209003]
[1739464589170,0.5698,95680.0,95678.0,0.209003]
[1739464589663,0.3608,95680.0,95675.0,0.002]
[1739464589867,0.209008,95677.0,95675.0,0.002]
[1739464590565,0.2090123,95674.0,95664.0,0.0001568]
[1739464590966,0.209032,95665.0,95664.0,0.0001568]
[1739464591164,0.2090196,95671.0,95664.0,0.0001568]
[1739464591367,0.1131127,95670.0,95669.0,0.2090229]
[1739464591558,0.0130974,95677.0,95664.0,0.0001568]
[1739464591770,0.20903,95666.0,95664.0,0.0001568]
[1739464592071,0.0806,95665.0,95664.0,0.0001568]
[1739464592271,0.0806,95665.0,95650.0,0.5704644]
[1739464592467,0.3608,95659.0,95645.0,0.2090749]
[1739464593164,0.2090779,95644.0,95643.0,0.01316739]
[1739464593362,0.2090779,95644.0,95642.0,0.2092386]
[1739464594668,0.001,95644.0,95643.0,0.007]
[1739464595172,0.001,95644.0,95642.0,0.2162386]
[1739464595664,0.001,95644.0,95642.0,0.2232386]
[1739464595972,0.002,95644.0,95642.0,0.2232386]
[1739464597171,0.002,95644.0,95642.0,0.0141568]
[1739464597380,0.443,95643.0,95642.0,0.0141568]
[1739464597673,0.443,95643.0,95642.0,0.0071568]
[1739464598062,0.45583296,95643.0,95642.0,0.0071568]
[1739464598269,0.2090867,95640.0,95639.0,0.07622]
[1739464599468,0.2100867,95640.0,95639.0,0.08322]
[1739464599668,0.001,95640.0,95639.0,0.08322]
[1739464599972,0.001,95640.0,95639.0,0.2923088]
[1739464600273,0.001,95640.0,95639.0,0.2853088]
[1739464600674,0.001,95640.0,95639.0,0.2863088]
[1739464601078,0.001,95640.0,95639.0,0.29922808]
[1739464601376,0.001,95640.0,95639.0,0.30022808]
[1739464601869,0.083,95642.0,95641.0,0.2090845]
[1739464602667,0.083,95642.0,95639.0,0.07622]
[1739464602668,0.2090845,95641.0,95639.0,0.07622]
[1739464603074,0.2090867,95640.0,95639.0,0.07622]
[1739464603365,0.2090867,95640.0,95639.0,0.08122]
[1739464603970,0.2090867,95640.0,95639.0,0.07622]
[1739464604579,0.2120867,95640.0,95639.0,0.07622]
[1739464605675,0.2170867,95640.0,95639.0,0.07622]
[1739464606385,0.2190867,95640.0,95639.0,0.07722]
[1739464606880,0.2140867,95640.0,95639.0,0.07622]
[1739464607082,0.2180867,95640.0,95639.0,0.07622]
[1739464607479,0.2140867,95640.0,95639.0,0.07622]
[1739464607681,0.2150867,95640.0,95639.0,0.07622]
[1739464608180,0.2160867,95640.0,95639.0,0.07622]
[1739464608887,0.5768867,95640.0,95639.0,0.07622]
[1739464609182,0.5758867,95640.0,95639.0,0.07622]
[1739464609875,0.5718867,95640.0,95639.0,0.07622]
[1739464610081,0.5758867,95640.0,95639.0,0.07622]
[1739464611487,0.5768867,95640.0,95639.0,0.07622]
[1739464611784,0.5788867,95640.0,95639.0,0.07622]
[1739464611986,0.5758867,95640.0,95639.0,0.07622]
[1739464612178,0.5808867,95640.0,95639.0,0.07622]
[1739464612586,0.5738867,95640.0,95639.0,0.07622]
[1739464612788,0.5758867,95640.0,95639.0,0.07622]
[1739464613488,0.3678,95640.0,95639.0,0.07622]
[1739464614486,0.007,95640.0,95639.0,0.07622]
[1739464614991,0.002,95640.0,95639.0,0.07622]
[1739464615182,0.004,95640.0,95639.0,0.07622]
[1739464615888,0.008,95640.0,95639.0,0.07622]
[1739464616389,0.008,95640.0,95630.0,0.0001568]
[1739464616390,0.005,95640.0,95630.0,0.0001568]
[1739464616592,0.2091063,95631.0,95630.0,0.0001568]
[1739464618289,0.2091063,95631.0,95630.0,0.0021568]
[1739464618486,0.22207977,95631.0,95630.0,0.0021568]
[1739464618687,0.2091063,95631.0,95630.0,0.0021568]
[1739464618884,0.005,95631.0,95630.0,0.2112653]
[1739464619083,0.01,95631.0,95630.0,0.0001568]
[1739464619280,0.005,95631.0,95630.0,0.0001568]
[1739464619485,0.01,95631.0,95630.0,0.0001568]
[1739464619978,0.007,95631.0,95630.0,0.0001568]
[1739464620190,0.2161063,95631.0,95630.0,0.2092653]
[1739464620785,0.2151063,95631.0,95630.0,0.0001568]
[1739464621184,0.2151063,95631.0,95619.0,0.0015687]
[1739464621185,0.306,95631.0,95619.0,0.0015687]
[1739464621495,0.306,95631.0,95594.0,0.0742]
[1739464621496,0.2091851,95595.0,95594.0,0.0742]
[1739464621792,0.2092279,95576.0,95574.0,0.3608]
[1739464622204,0.2092332,95573.0,95572.0,0.18763505]
[1739464623086,0.3608,95575.0,95565.0,0.00015688]
[1739464623286,0.3608,95566.0,95565.0,0.00015688]
[1739464623486,0.48782407,95575.0,95571.0,0.2092372]
[1739464623696,0.2092321,95574.0,95565.0,0.00015688]
[1739464623889,0.2092346,95573.0,95565.0,0.20940598]
[1739464624192,0.2092346,95573.0,95566.0,0.209247]
[1739464624393,0.2092377,95571.0,95566.0,0.209247]
[1739464624786,0.001,95576.0,95573.0,0.209232]
[1739464624992,0.001,95573.0,95565.0,0.00715688]
[1739464625295,0.001,95573.0,95572.0,0.2092347]
[1739464626095,0.002,95573.0,95565.0,0.00715688]
[1739464626299,0.2092473,95567.0,95565.0,0.00715688]
[1739464626499,0.2092473,95567.0,95566.0,0.006]
[1739464628004,0.2092328,95574.0,95565.0,0.00015688]
[1739464628190,0.2092328,95574.0,95572.0,0.005]
[1739464628386,0.07892,95573.0,95572.0,0.2142354]
[1739464628586,0.001,95573.0,95572.0,0.2092354]
[1739464628891,0.5700233,95578.0,95566.0,0.006]
[1739464628892,0.18025357,95578.0,95566.0,0.006]
[1739464629190,0.2092298,95575.0,95568.0,0.2092431]
[1739464629400,0.001,95573.0,95568.0,0.2092431]
[1739464629597,0.001,95573.0,95566.0,0.001]
[1739464630202,0.001,95573.0,95565.0,0.00715688]
[1739464630386,0.001,95573.0,95568.0,0.001]
[1739464630590,0.001,95573.0,95571.0,0.2092369]
[1739464631093,0.018,95583.0,95572.0,0.005]
[1739464631397,0.018,95583.0,95579.0,0.2092181]
[1739464631706,0.00015688,95585.0,95584.0,0.2092091]
[1739464632292,0.2162,95596.0,95595.0,0.2091851]
[1739464632489,0.33529846,95610.0,95595.0,0.3608]
[1739464632699,0.33529846,95610.0,95604.0,0.2091649]
[1739464632700,0.12614406,95610.0,95604.0,0.2091649]
[1739464632999,0.12614406,95610.0,95584.0,0.01252959]
[1739464633000,0.12614406,95610.0,95597.0,0.3608]
[1739464633196,0.12614406,95610.0,95597.0,0.5699798]
[1739464633391,0.3608,95602.0,95584.0,0.01252959]
[1739464633594,0.3608,95602.0,95580.0,0.1528]
[1739464633595,0.2092155,95582.0,95580.0,0.1528]
[1739464633896,0.2092155,95582.0,95580.0,0.0734]
[1739464634494,0.2092155,95582.0,95571.0,0.00015688]
[1739464634495,0.2092354,95572.0,95571.0,0.00015688]
[1739464635491,0.5700354,95572.0,95571.0,0.00015688]
[1739464635903,0.5700354,95572.0,95571.0,0.00515688]
[1739464636603,0.2092232,95578.0,95576.0,0.2092262]
[1739464637407,0.2092332,95574.0,95572.0,0.2841291]
[1739464638298,0.2092191,95580.0,95575.0,0.2092268]
[1739464638498,0.2162,95581.0,95572.0,0.0749]
[1739464638499,0.2162,95581.0,95579.0,0.209219]
[1739464638695,0.2162,95581.0,95576.0,0.003]
[1739464638900,0.2092231,95578.0,95576.0,0.003]
[1739464640506,0.2092231,95578.0,95576.0,0.001]
[1739464641206,0.2092231,95578.0,95576.0,0.004]
[1739464642120,0.3608,95577.0,95576.0,0.004]
[1739464642297,0.43856,95577.0,95558.0,0.0781]
[1739464642505,0.2092639,95559.0,95558.0,0.0781]
[1739464643295,0.3608,95559.0,95545.0,0.3608]
[1739464643603,0.2093011,95542.0,95541.0,0.0762]
[1739464643803,0.3608,95549.0,95526.0,0.3608]
[1739464643804,0.0523227,95547.0,95530.0,0.01267976]
[1739464644109,0.2093208,95533.0,95532.0,0.00015697]